[Event "*** Titled Tuesday Blitz"]
[Site "Chess.com"]
[Date "2020.04.07"]
[Round "1"]
[White "Hikaru"]
[Black "Vyacheslav_N"]
[Result "1-0"]
[WhiteElo "3264"]
[BlackElo "2500"]
[TimeControl "180+1"]
[EndTime "13:06:37 PDT"]
[Termination "Hikaru won on time"]

1. e4 {[%clk 0:02:58.4]} 1... c5 {[%clk 0:02:58.3]} 2. Nf3 {[%clk 0:02:57.6]}
2... Nc6 {[%clk 0:02:58.7]} 3. Bb5 {[%clk 0:02:55.8]} 3... g6 {[%clk 0:02:58.4]}
4. O-O {[%clk 0:02:55.5]} 4... Bg7 {[%clk 0:02:58.5]} 5. Re1 {[%clk 0:02:54.4]}
5... Nf6 {[%clk 0:02:57.2]} 6. e5 {[%clk 0:02:23.6]} 6... Nd5 {[%clk 0:02:56.3]}
7. Nc3 {[%clk 0:02:23.8]} 7... Nc7 {[%clk 0:02:52.1]} 8. Bxc6 {[%clk 0:02:17.6]}
8... dxc6 {[%clk 0:02:53]} 9. d3 {[%clk 0:02:18.2]} 9... O-O {[%clk 0:02:31.6]}
10. h3 {[%clk 0:02:06.1]} 10... Nd5 {[%clk 0:02:29.6]} 11. Bd2 {[%clk
0:02:05.2]} 11... h6 {[%clk 0:02:28.3]} 12. Ne4 {[%clk 0:02:05.2]} 12... b6
{[%clk 0:02:28.4]} 13. c4 {[%clk 0:02:05.3]} 13... Nc7 {[%clk 0:02:24.6]} 14.
Qe2 {[%clk 0:02:03.3]} 14... Ne6 {[%clk 0:02:24.5]} 15. Rad1 {[%clk 0:02:02.4]}
15... Qc7 {[%clk 0:02:22.4]} 16. Bc3 {[%clk 0:02:00.6]} 16... Rd8 {[%clk
0:02:22.4]} 17. Qe3 {[%clk 0:02:01]} 17... a5 {[%clk 0:02:12.5]} 18. a4 {[%clk
0:02:00.1]} 18... Bd7 {[%clk 0:01:53.6]} 19. b3 {[%clk 0:01:52.2]} 19... Be8
{[%clk 0:01:52.2]} 20. Nh2 {[%clk 0:01:50.4]} 20... Nd4 {[%clk 0:01:39.5]} 21.
Ng4 {[%clk 0:01:48.6]} 21... Nf5 {[%clk 0:00:40.2]} 22. Qf4 {[%clk 0:01:42.7]}
22... h5 {[%clk 0:00:39.9]} 23. Nh2 {[%clk 0:01:42.7]} 23... Nd4 {[%clk
0:00:29.7]} 24. Bxd4 {[%clk 0:01:42.6]} 24... Rxd4 {[%clk 0:00:30.2]} 25. Nf3
{[%clk 0:01:43.2]} 25... Rd7 {[%clk 0:00:27.3]} 26. g4 {[%clk 0:01:41.4]} 26...
hxg4 {[%clk 0:00:25.2]} 27. hxg4 {[%clk 0:01:41.5]} 27... Rad8 {[%clk
0:00:24.9]} 28. Re3 {[%clk 0:01:41.5]} 28... Rd4 {[%clk 0:00:23]} 29. Nxd4
{[%clk 0:01:37.2]} 29... cxd4 {[%clk 0:00:16.2]} 30. Re2 {[%clk 0:01:35.6]}
30... Bxe5 {[%clk 0:00:16.2]} 31. Qf3 {[%clk 0:01:35.2]} 31... Bg7 {[%clk
0:00:14.8]} 32. Kg2 {[%clk 0:01:33.3]} 32... Bd7 {[%clk 0:00:13.6]} 33. Rh1
{[%clk 0:01:29.9]} 33... Qc8 {[%clk 0:00:13.4]} 34. Ng5 {[%clk 0:01:22.6]} 34...
f6 {[%clk 0:00:11.9]} 35. Rxe7 {[%clk 0:01:18.5]} 35... Bxg4 {[%clk 0:00:08.2]}
36. Qf4 {[%clk 0:01:15.1]} 36... Bf5 {[%clk 0:00:03.4]} 37. Qh4 {[%clk
0:01:10.9]} 1-0

[Event "*** Titled Tuesday Blitz"]
[Site "Chess.com"]
[Date "2020.04.07"]
[Round "1"]
[White "ruslansezdbekov"]
[Black "TheKingDoctor"]
[Result "1-0"]
[WhiteElo "2526"]
[BlackElo "2093"]
[TimeControl "180+1"]
[EndTime "13:06:37 PDT"]
[Termination "ruslansezdbekov won by checkmate"]

1. e4 {[%clk 0:02:59.4]} 1... e5 {[%clk 0:02:58.9]} 2. Nf3 {[%clk 0:02:59.2]}
2... Nc6 {[%clk 0:02:58.9]} 3. Bc4 {[%clk 0:02:58.9]} 3... Bc5 {[%clk
0:02:58.6]} 4. c3 {[%clk 0:02:58.6]} 4... Nf6 {[%clk 0:02:58.8]} 5. d3 {[%clk
0:02:58.9]} 5... a6 {[%clk 0:02:57.3]} 6. O-O {[%clk 0:02:58.8]} 6... O-O {[%clk
0:02:57.2]} 7. b4 {[%clk 0:02:58.6]} 7... Ba7 {[%clk 0:02:57]} 8. Nbd2 {[%clk
0:02:59]} 8... d5 {[%clk 0:02:51]} 9. exd5 {[%clk 0:02:56.3]} 9... Nxd5 {[%clk
0:02:51]} 10. Ne4 {[%clk 0:02:50.7]} 10... f6 {[%clk 0:02:47.4]} 11. Qb3 {[%clk
0:02:43.8]} 11... Be6 {[%clk 0:02:47]} 12. Neg5 {[%clk 0:02:30.7]} 12... fxg5
{[%clk 0:02:44.4]} 13. Nxg5 {[%clk 0:02:30.7]} 13... Rxf2 {[%clk 0:01:44]} 14.
Rxf2 {[%clk 0:02:23.9]} 14... Bxf2+ {[%clk 0:01:43.6]} 15. Kh1 {[%clk
0:02:12.5]} 15... b5 {[%clk 0:01:18.8]} 16. Nxe6 {[%clk 0:02:11.4]} 16... bxc4
{[%clk 0:01:18.8]} 17. Nxd8 {[%clk 0:02:11]} 17... cxb3 {[%clk 0:01:18.7]} 18.
Nxc6 {[%clk 0:02:11]} 18... Nxc3 {[%clk 0:00:52.3]} 19. axb3 {[%clk 0:02:08]}
19... Rf8 {[%clk 0:00:41.2]} 20. Bg5 {[%clk 0:01:59.3]} 20... Bd4 {[%clk
0:00:38.4]} 21. g3 {[%clk 0:01:45.7]} 21... h6 {[%clk 0:00:38.2]} 22. Be7 {[%clk
0:01:44]} 22... Rf2 {[%clk 0:00:38.2]} 23. Nxd4 {[%clk 0:01:35.3]} 23... exd4
{[%clk 0:00:38.5]} 24. Bc5 {[%clk 0:01:35.4]} 24... Ne2 {[%clk 0:00:37.7]} 25.
Rxa6 {[%clk 0:01:29.1]} 25... Kf7 {[%clk 0:00:37.2]} 26. Rc6 {[%clk 0:01:25.5]}
26... g5 {[%clk 0:00:36.3]} 27. Rxc7+ {[%clk 0:01:23.5]} 27... Ke6 {[%clk
0:00:36.6]} 28. b5 {[%clk 0:01:17.8]} 28... g4 {[%clk 0:00:35]} 29. b6 {[%clk
0:01:15.3]} 29... h5 {[%clk 0:00:32.9]} 30. b7 {[%clk 0:01:14.7]} 30... h4
{[%clk 0:00:33.1]} 31. b8=Q {[%clk 0:01:08.5]} 31... h3 {[%clk 0:00:33]} 32.
Qg8+ {[%clk 0:01:03.5]} 32... Kf6 {[%clk 0:00:31.2]} 33. Rf7+ {[%clk 0:01:02.2]}
33... Ke5 {[%clk 0:00:31.1]} 34. Qg5+ {[%clk 0:00:57.7]} 34... Ke6 {[%clk
0:00:26.8]} 35. Re7# {[%clk 0:00:55.9]} 1-0

[Event "*** Titled Tuesday Blitz"]
[Site "Chess.com"]
[Date "2020.04.07"]
[Round "1"]
[White "mc4chess"]
[Black "Schachspielerr"]
[Result "0-1"]
[WhiteElo "2366"]
[BlackElo "2717"]
[TimeControl "180+1"]
[EndTime "13:06:38 PDT"]
[Termination "Schachspielerr won by resignation"]

1. c4 {[%clk 0:02:58.8]} 1... e5 {[%clk 0:02:59.7]} 2. Nc3 {[%clk 0:02:58.8]}
2... Nf6 {[%clk 0:02:59.9]} 3. Nf3 {[%clk 0:02:58.9]} 3... Nc6 {[%clk
0:02:59.8]} 4. g3 {[%clk 0:02:59.2]} 4... Bc5 {[%clk 0:02:59]} 5. Bg2 {[%clk
0:02:59.1]} 5... d6 {[%clk 0:02:58.3]} 6. O-O {[%clk 0:02:59.6]} 6... a6 {[%clk
0:02:58.4]} 7. d3 {[%clk 0:02:55.1]} 7... h6 {[%clk 0:02:54.2]} 8. a3 {[%clk
0:02:50.8]} 8... O-O {[%clk 0:02:53.3]} 9. b4 {[%clk 0:02:50.8]} 9... Ba7 {[%clk
0:02:53.4]} 10. Bb2 {[%clk 0:02:35.8]} 10... Be6 {[%clk 0:02:53.4]} 11. h3
{[%clk 0:02:22.2]} 11... Qd7 {[%clk 0:02:49.1]} 12. Kh2 {[%clk 0:02:22.5]} 12...
Ne7 {[%clk 0:02:26.8]} 13. c5 {[%clk 0:02:12.9]} 13... Nc6 {[%clk 0:02:22.9]}
14. cxd6 {[%clk 0:02:11.2]} 14... cxd6 {[%clk 0:02:23.8]} 15. Rc1 {[%clk
0:02:09.4]} 15... Rac8 {[%clk 0:02:22.6]} 16. Qd2 {[%clk 0:02:04.3]} 16... Bb3
{[%clk 0:02:01.8]} 17. Ne4 {[%clk 0:01:53.4]} 17... Nd5 {[%clk 0:01:31.4]} 18.
Nc3 {[%clk 0:01:46]} 18... Nde7 {[%clk 0:01:29.5]} 19. b5 {[%clk 0:01:07.4]}
19... axb5 {[%clk 0:01:17.4]} 20. Nxb5 {[%clk 0:01:08.3]} 20... Bb8 {[%clk
0:01:18]} 21. Qc3 {[%clk 0:00:43.6]} 21... Ba4 {[%clk 0:01:16.1]} 22. Qc4 {[%clk
0:00:31.8]} 22... Bxb5 {[%clk 0:01:15.5]} 23. Qxb5 {[%clk 0:00:31.8]} 23... d5
{[%clk 0:01:16.1]} 24. Rc2 {[%clk 0:00:25.5]} 24... Nf5 {[%clk 0:01:01.3]} 25.
Rfc1 {[%clk 0:00:23.5]} 25... e4 {[%clk 0:01:01.5]} 26. dxe4 {[%clk 0:00:23.6]}
26... dxe4 {[%clk 0:01:02.4]} 27. Rd2 {[%clk 0:00:23.2]} 27... Qe6 {[%clk
0:00:57.7]} 28. Nd4 {[%clk 0:00:13.2]} 28... Ncxd4 {[%clk 0:00:48.5]} 29. Rxd4
{[%clk 0:00:10.8]} 29... Nxd4 {[%clk 0:00:48.1]} 30. Rxc8 {[%clk 0:00:03.1]} 0-1

[Event "*** Titled Tuesday Blitz"]
[Site "Chess.com"]
[Date "2020.04.07"]
[Round "1"]
[White "Storne89"]
[Black "indfraeng"]
[Result "1-0"]
[WhiteElo "2600"]
[BlackElo "2256"]
[TimeControl "180+1"]
[EndTime "13:06:40 PDT"]
[Termination "Storne89 won by resignation"]

1. e4 {[%clk 0:02:51.3]} 1... e5 {[%clk 0:03:00.9]} 2. Nf3 {[%clk 0:02:50.1]}
2... Nc6 {[%clk 0:03:01.2]} 3. Bc4 {[%clk 0:02:49]} 3... Bc5 {[%clk 0:03:00.9]}
4. d3 {[%clk 0:02:48.8]} 4... Nf6 {[%clk 0:03:00.4]} 5. a4 {[%clk 0:02:47]} 5...
h6 {[%clk 0:02:58.3]} 6. c3 {[%clk 0:02:46.7]} 6... a5 {[%clk 0:02:57.6]} 7. O-O
{[%clk 0:02:45.3]} 7... d6 {[%clk 0:02:56.9]} 8. Nbd2 {[%clk 0:02:42.2]} 8...
O-O {[%clk 0:02:56.2]} 9. h3 {[%clk 0:02:41.8]} 9... Be6 {[%clk 0:02:55.3]} 10.
Re1 {[%clk 0:02:41.1]} 10... Re8 {[%clk 0:02:45.8]} 11. Bb5 {[%clk 0:02:26.7]}
11... Rf8 {[%clk 0:02:40.1]} 12. Qc2 {[%clk 0:02:22.9]} 12... Na7 {[%clk
0:02:34.1]} 13. Bc4 {[%clk 0:02:22.7]} 13... c6 {[%clk 0:02:34.1]} 14. Bb3
{[%clk 0:02:15.8]} 14... Qc7 {[%clk 0:02:15.6]} 15. Nc4 {[%clk 0:02:11.7]} 15...
b5 {[%clk 0:02:11.7]} 16. axb5 {[%clk 0:02:09.5]} 16... Nxb5 {[%clk 0:02:12.6]}
17. Be3 {[%clk 0:02:02.8]} 17... Bxe3 {[%clk 0:02:10.8]} 18. Nxe3 {[%clk
0:02:02.2]} 18... Rfb8 {[%clk 0:02:08.3]} 19. Bxe6 {[%clk 0:01:58.1]} 19... fxe6
{[%clk 0:02:09.2]} 20. d4 {[%clk 0:01:57.1]} 20... exd4 {[%clk 0:02:08.2]} 21.
cxd4 {[%clk 0:01:58]} 21... d5 {[%clk 0:02:05.1]} 22. exd5 {[%clk 0:01:44.7]}
22... cxd5 {[%clk 0:01:58.8]} 23. Qg6 {[%clk 0:01:44.7]} 23... Nd6 {[%clk
0:01:50.1]} 24. Re2 {[%clk 0:01:31.8]} 24... Nc4 {[%clk 0:01:47.2]} 25. Nxc4
{[%clk 0:01:30.2]} 25... dxc4 {[%clk 0:01:44]} 26. Rae1 {[%clk 0:01:25.4]} 26...
Qf7 {[%clk 0:01:42.3]} 27. Qc2 {[%clk 0:01:24.8]} 27... Rb6 {[%clk 0:01:36.2]}
28. Qxc4 {[%clk 0:01:23.8]} 28... Rab8 {[%clk 0:01:32.3]} 29. Ne5 {[%clk
0:01:23.9]} 29... Qe7 {[%clk 0:01:27.8]} 30. Nc6 {[%clk 0:01:20]} 30... Qc7
{[%clk 0:01:26.6]} 31. Rxe6 {[%clk 0:01:17]} 31... Kh8 {[%clk 0:01:15.4]} 32. d5
{[%clk 0:01:12.3]} 32... Rc8 {[%clk 0:01:11.9]} 33. Re7 {[%clk 0:01:05.2]} 33...
Qd6 {[%clk 0:01:08.1]} 34. Qh4 {[%clk 0:00:35.6]} 34... Qxd5 {[%clk 0:00:56.2]}
35. Ne5 {[%clk 0:00:35.5]} 35... Rxb2 {[%clk 0:00:51.7]} 36. Nf7+ {[%clk
0:00:32.9]} 36... Kg8 {[%clk 0:00:51.2]} 37. Nxh6+ {[%clk 0:00:32.4]} 37... gxh6
{[%clk 0:00:52.1]} 38. Qxf6 {[%clk 0:00:29.6]} 38... Qg5 {[%clk 0:00:47.8]} 39.
Qf7+ {[%clk 0:00:25.3]} 1-0

[Event "*** Titled Tuesday Blitz"]
[Site "Chess.com"]
[Date "2020.04.07"]
[Round "1"]
[White "Mizner"]
[Black "Hangar-18"]
[Result "0-1"]
[WhiteElo "2549"]
[BlackElo "2313"]
[TimeControl "180+1"]
[EndTime "13:06:40 PDT"]
[Termination "Hangar-18 won by resignation"]

1. e4 {[%clk 0:03:00.2]} 1... e6 {[%clk 0:03:00.5]} 2. d4 {[%clk 0:02:59.9]}
2... c5 {[%clk 0:03:01.4]} 3. Nd2 {[%clk 0:03:00.5]} 3... cxd4 {[%clk
0:03:01.5]} 4. Ndf3 {[%clk 0:02:43.6]} 4... Nc6 {[%clk 0:02:54.3]} 5. Nxd4
{[%clk 0:02:43.2]} 5... Nxd4 {[%clk 0:02:48.8]} 6. Qxd4 {[%clk 0:02:42.3]} 6...
Qc7 {[%clk 0:02:49.7]} 7. c4 {[%clk 0:02:30.1]} 7... Nf6 {[%clk 0:02:43.7]} 8.
e5 {[%clk 0:02:15.5]} 8... Bc5 {[%clk 0:02:43.7]} 9. Qf4 {[%clk 0:02:07.4]} 9...
Bb4+ {[%clk 0:02:40.4]} 10. Bd2 {[%clk 0:02:00.5]} 10... Bxd2+ {[%clk
0:02:40.3]} 11. Kxd2 {[%clk 0:02:00.8]} 11... O-O {[%clk 0:02:17.9]} 12. Bd3
{[%clk 0:01:57.3]} 12... b5 {[%clk 0:01:54.6]} 13. Rc1 {[%clk 0:01:12.3]} 13...
Rb8 {[%clk 0:00:52.8]} 14. Ne2 {[%clk 0:01:06.4]} 14... Qa5+ {[%clk 0:00:44.4]}
15. Kd1 {[%clk 0:00:59]} 15... bxc4 {[%clk 0:00:34.1]} 16. exf6 {[%clk
0:00:30.5]} 16... cxd3 {[%clk 0:00:34.1]} 17. Qxb8 {[%clk 0:00:30]} 17... dxe2+
{[%clk 0:00:34.5]} 18. Kc2 {[%clk 0:00:29.5]} 18... Qf5+ {[%clk 0:00:24.5]} 19.
Kb3 {[%clk 0:00:27.3]} 19... Ba6 {[%clk 0:00:20.1]} 20. Qxa7 {[%clk 0:00:23]}
20... Qb5+ {[%clk 0:00:17.2]} 21. Ka3 {[%clk 0:00:22.5]} 21... Qa5+ {[%clk
0:00:16.9]} 22. Kb3 {[%clk 0:00:22.2]} 22... Bc4+ {[%clk 0:00:17.3]} 23. Rxc4
{[%clk 0:00:21.2]} 23... Qxa7 {[%clk 0:00:18.2]} 0-1

[Event "*** Titled Tuesday Blitz"]
[Site "Chess.com"]
[Date "2020.04.07"]
[Round "1"]
[White "LikeWater"]
[Black "LilRag"]
[Result "1-0"]
[WhiteElo "2690"]
[BlackElo "2351"]
[TimeControl "180+1"]
[EndTime "13:06:41 PDT"]
[Termination "LikeWater won by checkmate"]

1. e4 {[%clk 0:03:00.9]} 1... c5 {[%clk 0:02:57]} 2. Nf3 {[%clk 0:03:00.7]} 2...
e6 {[%clk 0:02:56.4]} 3. Nc3 {[%clk 0:03:01.6]} 3... Nc6 {[%clk 0:02:54.5]} 4.
d4 {[%clk 0:03:01.6]} 4... cxd4 {[%clk 0:02:54.3]} 5. Nxd4 {[%clk 0:03:02.5]}
5... Nf6 {[%clk 0:02:54.6]} 6. Nxc6 {[%clk 0:03:02.4]} 6... bxc6 {[%clk
0:02:54.4]} 7. e5 {[%clk 0:03:02.9]} 7... Nd5 {[%clk 0:02:54]} 8. Ne4 {[%clk
0:03:03.5]} 8... Qc7 {[%clk 0:02:52.5]} 9. f4 {[%clk 0:03:03.5]} 9... Qb6 {[%clk
0:02:52.7]} 10. c4 {[%clk 0:03:02.5]} 10... Ne3 {[%clk 0:02:52.1]} 11. Qd3
{[%clk 0:02:33.3]} 11... Bb4+ {[%clk 0:02:46.7]} 12. Bd2 {[%clk 0:02:32.2]}
12... Bxd2+ {[%clk 0:02:41.9]} 13. Qxd2 {[%clk 0:02:30.1]} 13... O-O {[%clk
0:02:31.2]} 14. c5 {[%clk 0:02:24]} 14... Nxf1 {[%clk 0:02:29.3]} 15. Rxf1
{[%clk 0:02:24.9]} 15... Qc7 {[%clk 0:02:21.4]} 16. Rf3 {[%clk 0:02:20.1]} 16...
Rb8 {[%clk 0:02:19.2]} 17. Rc1 {[%clk 0:01:58.6]} 17... Ba6 {[%clk 0:02:07.2]}
18. Nd6 {[%clk 0:01:50.8]} 18... f6 {[%clk 0:01:47.3]} 19. exf6 {[%clk
0:01:32.4]} 19... Rxf6 {[%clk 0:01:46.5]} 20. Kf2 {[%clk 0:01:31.6]} 20... Rbf8
{[%clk 0:01:42]} 21. g4 {[%clk 0:01:22.9]} 21... g5 {[%clk 0:01:32]} 22. f5
{[%clk 0:01:23.1]} 22... h6 {[%clk 0:01:30.1]} 23. h4 {[%clk 0:01:14.8]} 23...
gxh4 {[%clk 0:01:28.5]} 24. Rh1 {[%clk 0:01:14.2]} 24... Qd8 {[%clk 0:00:57.3]}
25. g5 {[%clk 0:00:58.7]} 25... Rxf5 {[%clk 0:00:34.6]} 26. Nxf5 {[%clk
0:00:58.6]} 26... Rxf5 {[%clk 0:00:31.1]} 27. Rxf5 {[%clk 0:00:47]} 27... exf5
{[%clk 0:00:30.3]} 28. Rg1 {[%clk 0:00:36.7]} 28... h5 {[%clk 0:00:27.5]} 29.
Qd6 {[%clk 0:00:33.1]} 29... Qa5 {[%clk 0:00:23.3]} 30. Re1 {[%clk 0:00:21.7]}
30... Qxa2 {[%clk 0:00:22.7]} 31. Qg6+ {[%clk 0:00:19.5]} 31... Kf8 {[%clk
0:00:21]} 32. Re8# {[%clk 0:00:19]} 1-0

[Event "*** Titled Tuesday Blitz"]
[Site "Chess.com"]
[Date "2020.04.07"]
[Round "1"]
[White "Sam_ChessMood"]
[Black "Orest_Vovk"]
[Result "1-0"]
[WhiteElo "2914"]
[BlackElo "2469"]
[TimeControl "180+1"]
[EndTime "13:06:42 PDT"]
[Termination "Sam_ChessMood won by checkmate"]

1. e4 {[%clk 0:02:57.4]} 1... Nc6 {[%clk 0:02:57.6]} 2. Nf3 {[%clk 0:02:56.6]}
2... d5 {[%clk 0:02:57.4]} 3. exd5 {[%clk 0:02:56.5]} 3... Qxd5 {[%clk
0:02:58.3]} 4. d4 {[%clk 0:02:52.6]} 4... Bg4 {[%clk 0:02:56.9]} 5. Be2 {[%clk
0:02:52.8]} 5... O-O-O {[%clk 0:02:56.4]} 6. Be3 {[%clk 0:02:42]} 6... Nf6
{[%clk 0:02:55.4]} 7. Nbd2 {[%clk 0:02:29.7]} 7... e6 {[%clk 0:02:50.6]} 8. h3
{[%clk 0:02:23.6]} 8... Bh5 {[%clk 0:02:38.6]} 9. O-O {[%clk 0:02:23.4]} 9...
Bd6 {[%clk 0:02:21.8]} 10. c3 {[%clk 0:01:44.7]} 10... Rhg8 {[%clk 0:01:58.3]}
11. b4 {[%clk 0:01:37.7]} 11... g5 {[%clk 0:01:52.4]} 12. g4 {[%clk 0:01:37]}
12... Bxg4 {[%clk 0:00:54.5]} 13. hxg4 {[%clk 0:01:34.7]} 13... Nxg4 {[%clk
0:00:55.4]} 14. Nc4 {[%clk 0:00:51.9]} 14... Bf4 {[%clk 0:00:38.3]} 15. Qd3
{[%clk 0:00:42.6]} 15... b5 {[%clk 0:00:17]} 16. Ncd2 {[%clk 0:00:37.8]} 16...
Nxe3 {[%clk 0:00:15.7]} 17. fxe3 {[%clk 0:00:37.6]} 17... g4 {[%clk 0:00:16.2]}
18. Ne1 {[%clk 0:00:31.2]} 18... Bg3 {[%clk 0:00:04.4]} 19. Qe4 {[%clk
0:00:27.7]} 19... Qh5 {[%clk 0:00:03.9]} 20. Qg2 {[%clk 0:00:27.8]} 20... Bd6
{[%clk 0:00:03.9]} 21. Ne4 {[%clk 0:00:25.7]} 21... Ne7 {[%clk 0:00:04]} 22. Nf6
{[%clk 0:00:24.8]} 22... Qh4 {[%clk 0:00:02.7]} 23. Qa8# {[%clk 0:00:24.4]} 1-0

[Event "*** Titled Tuesday Blitz"]
[Site "Chess.com"]
[Date "2020.04.07"]
[Round "1"]
[White "Rish_97"]
[Black "SmirnovAlexandrA"]
[Result "1-0"]
[WhiteElo "2553"]
[BlackElo "2171"]
[TimeControl "180+1"]
[EndTime "13:06:42 PDT"]
[Termination "Rish_97 won by resignation"]

1. e4 {[%clk 0:02:53.1]} 1... c5 {[%clk 0:02:59.4]} 2. Nf3 {[%clk 0:02:52]} 2...
d6 {[%clk 0:02:59.7]} 3. d4 {[%clk 0:02:52]} 3... cxd4 {[%clk 0:03:00.6]} 4.
Nxd4 {[%clk 0:02:52.9]} 4... Nf6 {[%clk 0:03:00.9]} 5. Nc3 {[%clk 0:02:53.5]}
5... a6 {[%clk 0:03:01.3]} 6. f3 {[%clk 0:02:42.9]} 6... e5 {[%clk 0:02:59.7]}
7. Nb3 {[%clk 0:02:42.9]} 7... Be6 {[%clk 0:03:00.1]} 8. Be3 {[%clk 0:02:43]}
8... Be7 {[%clk 0:03:00.5]} 9. Qd2 {[%clk 0:02:43.1]} 9... Nbd7 {[%clk
0:03:00.9]} 10. O-O-O {[%clk 0:02:37.7]} 10... Qc7 {[%clk 0:03:00.8]} 11. g4
{[%clk 0:02:37.1]} 11... b5 {[%clk 0:02:53]} 12. g5 {[%clk 0:02:31.7]} 12... b4
{[%clk 0:02:53]} 13. Nd5 {[%clk 0:02:24]} 13... Nxd5 {[%clk 0:02:51]} 14. exd5
{[%clk 0:02:24.9]} 14... Bf5 {[%clk 0:02:50.6]} 15. Bd3 {[%clk 0:02:22.8]} 15...
Bg6 {[%clk 0:02:45.2]} 16. Qxb4 {[%clk 0:02:18.5]} 16... a5 {[%clk 0:02:42.5]}
17. Qa4 {[%clk 0:02:16.4]} 17... O-O {[%clk 0:02:34.3]} 18. h4 {[%clk
0:02:07.5]} 18... Rfc8 {[%clk 0:02:30.9]} 19. c3 {[%clk 0:02:06.4]} 19... Nb6
{[%clk 0:02:19.7]} 20. Qc6 {[%clk 0:01:45]} 20... Qxc6 {[%clk 0:02:10.5]} 21.
dxc6 {[%clk 0:01:45.9]} 21... Bxd3 {[%clk 0:02:10.4]} 22. Rxd3 {[%clk
0:01:45.3]} 22... Rxc6 {[%clk 0:02:10.5]} 23. Bxb6 {[%clk 0:01:40.9]} 23... Rxb6
{[%clk 0:02:09.9]} 24. Rd5 {[%clk 0:01:39.3]} 24... a4 {[%clk 0:02:09]} 25. Na1
{[%clk 0:01:33.4]} 25... f6 {[%clk 0:02:04.6]} 26. gxf6 {[%clk 0:01:24]} 26...
gxf6 {[%clk 0:02:00.1]} 27. Nc2 {[%clk 0:01:24.9]} 27... Kf7 {[%clk 0:01:59.2]}
28. Ne3 {[%clk 0:01:17.3]} 28... Ke6 {[%clk 0:01:58.8]} 29. Rhd1 {[%clk
0:01:16.2]} 29... f5 {[%clk 0:01:52.4]} 30. f4 {[%clk 0:01:07.7]} 30... Bxh4
{[%clk 0:01:48.8]} 31. Nc4 {[%clk 0:01:01.7]} 31... Rba6 {[%clk 0:01:37.2]} 32.
Rxd6+ {[%clk 0:00:57.2]} 32... Rxd6 {[%clk 0:01:36.7]} 33. Rxd6+ {[%clk
0:00:58.1]} 33... Kf7 {[%clk 0:01:30.1]} 34. Nxe5+ {[%clk 0:00:53.1]} 34... Kg7
{[%clk 0:01:23.8]} 35. Rd7+ {[%clk 0:00:50.1]} 35... Kg8 {[%clk 0:01:21.2]} 36.
Kd2 {[%clk 0:00:49.5]} 36... Bf6 {[%clk 0:01:17.6]} 37. b4 {[%clk 0:00:41.5]}
37... axb3 {[%clk 0:01:15.5]} 38. axb3 {[%clk 0:00:42.2]} 38... Bxe5 {[%clk
0:01:14.4]} 39. fxe5 {[%clk 0:00:42.2]} 39... Re8 {[%clk 0:01:15.3]} 40. Rd5
{[%clk 0:00:38.3]} 40... Kf7 {[%clk 0:01:14.4]} 41. Ke3 {[%clk 0:00:38.3]} 41...
Rg8 {[%clk 0:01:07.3]} 42. Kf4 {[%clk 0:00:38.1]} 42... Ke6 {[%clk 0:00:59.5]}
43. Rd6+ {[%clk 0:00:37.8]} 43... Ke7 {[%clk 0:00:59.3]} 44. Rh6 {[%clk
0:00:37.2]} 1-0

[Event "*** Titled Tuesday Blitz"]
[Site "Chess.com"]
[Date "2020.04.07"]
[Round "1"]
[White "HiHaruka"]
[Black "valeriocarnicelli"]
[Result "0-1"]
[WhiteElo "2271"]
[BlackElo "2606"]
[TimeControl "180+1"]
[EndTime "13:06:43 PDT"]
[Termination "valeriocarnicelli won on time"]

1. e4 {[%clk 0:03:00.8]} 1... c5 {[%clk 0:02:53]} 2. Nf3 {[%clk 0:02:56.1]} 2...
Nc6 {[%clk 0:02:52.7]} 3. d4 {[%clk 0:02:54.6]} 3... cxd4 {[%clk 0:02:52.6]} 4.
Nxd4 {[%clk 0:02:55.2]} 4... Nf6 {[%clk 0:02:52.4]} 5. Nc3 {[%clk 0:02:53.6]}
5... e6 {[%clk 0:02:52.7]} 6. Be3 {[%clk 0:02:51.4]} 6... a6 {[%clk 0:02:50.3]}
7. Nxc6 {[%clk 0:02:36.5]} 7... bxc6 {[%clk 0:02:49.1]} 8. Bd3 {[%clk
0:02:31.1]} 8... d5 {[%clk 0:02:48.6]} 9. exd5 {[%clk 0:02:30]} 9... cxd5 {[%clk
0:02:48.3]} 10. Ne2 {[%clk 0:02:28.6]} 10... Bd6 {[%clk 0:02:43]} 11. Ng3 {[%clk
0:02:19.8]} 11... O-O {[%clk 0:02:41.6]} 12. O-O {[%clk 0:02:18.8]} 12... e5
{[%clk 0:02:26.8]} 13. Bf5 {[%clk 0:02:10.6]} 13... d4 {[%clk 0:02:19.3]} 14.
Bg5 {[%clk 0:02:07.2]} 14... h6 {[%clk 0:02:17.2]} 15. Bxf6 {[%clk 0:02:00.2]}
15... Qxf6 {[%clk 0:02:17.5]} 16. Bxc8 {[%clk 0:01:58.7]} 16... Rfxc8 {[%clk
0:02:17.6]} 17. Ne4 {[%clk 0:01:59.1]} 17... Qe6 {[%clk 0:02:13.7]} 18. Qe2
{[%clk 0:01:49.9]} 18... f5 {[%clk 0:02:08.8]} 19. Nxd6 {[%clk 0:01:43.4]} 19...
Qxd6 {[%clk 0:02:09.7]} 20. Rad1 {[%clk 0:01:41.7]} 20... Rab8 {[%clk
0:02:08.3]} 21. c3 {[%clk 0:01:37.9]} 21... Rd8 {[%clk 0:01:56.2]} 22. cxd4
{[%clk 0:01:32.2]} 22... exd4 {[%clk 0:01:57.1]} 23. Qc4+ {[%clk 0:01:30.6]}
23... Kh8 {[%clk 0:01:56.3]} 24. Rd2 {[%clk 0:01:29]} 24... Rbc8 {[%clk
0:01:53]} 25. Qf7 {[%clk 0:01:26.3]} 25... Qf4 {[%clk 0:01:50]} 26. Rd3 {[%clk
0:01:11.1]} 26... Rc1 {[%clk 0:01:46.8]} 27. g3 {[%clk 0:00:24.6]} 27... Rxf1+
{[%clk 0:01:34.5]} 28. Kxf1 {[%clk 0:00:25.5]} 28... Qe4 {[%clk 0:01:34.8]} 29.
Qc4 {[%clk 0:00:14.2]} 29... Qh1+ {[%clk 0:01:31.8]} 30. Ke2 {[%clk 0:00:13.6]}
30... Re8+ {[%clk 0:01:32]} 31. Kd2 {[%clk 0:00:13.6]} 31... Qe1+ {[%clk
0:01:32.1]} 32. Kc2 {[%clk 0:00:13.5]} 32... Qe2+ {[%clk 0:01:28.9]} 33. Kb3
{[%clk 0:00:13.2]} 33... Rb8+ {[%clk 0:01:28.7]} 34. Ka4 {[%clk 0:00:06.9]}
34... Qe8+ {[%clk 0:01:21.7]} 35. Ka3 {[%clk 0:00:06]} 35... Qe7+ {[%clk
0:01:15.8]} 36. b4 {[%clk 0:00:06.1]} 36... a5 {[%clk 0:01:15.5]} 37. Rxd4
{[%clk 0:00:05.8]} 37... axb4+ {[%clk 0:01:11.8]} 38. Kb3 {[%clk 0:00:04.8]}
38... Qe1 {[%clk 0:01:06.9]} 39. Qc7 {[%clk 0:00:01.4]} 39... Qb1+ {[%clk
0:01:04.3]} 40. Kc4 {[%clk 0:00:01]} 40... Qc2+ {[%clk 0:01:03.5]} 0-1